bitfinex/quotes_SOLUSD_20250902
["timestamp","ask_amount","ask_price","bid_price","bid_amount"]
[1756830389721,0.71,200.52,200.48,12.63027602]
[1756830390415,45.3667927,200.53,200.48,12.63027602]
[1756830390617,41.09,200.53,200.48,12.63027602]
[1756830390914,0.71,200.56,200.5,12.63027602]
[1756830391344,0.71,200.59,200.54,12.63027602]
[1756830391514,40.32,200.58,200.54,12.63027602]
[1756830391718,40.32,200.58,200.56,12.63027602]
[1756830392028,13.34027602,200.57,200.49,0.67]
[1756830392353,12.63027602,200.55,200.49,13.30027602]
[1756830392655,40.38,200.55,200.51,12.63027602]
[1756830392814,0.71,200.57,200.52,12.63027602]
[1756830393012,40.38,200.56,200.52,13.30027602]
[1756830393215,0.71,200.57,200.52,13.30027602]
[1756830393450,0.06,200.6,200.55,12.63027602]
[1756830393627,40.44,200.6,200.55,12.63027602]
[1756830393828,12.63027602,200.57,200.5,0.67]
[1756830394044,12.63027602,200.58,200.52,12.63027602]
[1756830394226,0.71,200.59,200.5,0.67]
[1756830394442,12.63027602,200.58,200.53,12.63027602]
[1756830394743,13.34027602,200.58,200.53,12.63027602]
[1756830394943,12.63027602,200.59,200.53,13.30027602]
[1756830395152,13.34027602,200.59,200.53,12.63027602]
[1756830395323,4.98554192,200.58,200.5,5.6573317]
[1756830395637,4.98554192,200.58,200.53,12.63027602]
[1756830395840,12.63027602,200.56,200.5,0.67]
[1756830396142,40.36,200.55,200.51,12.63027602]
[1756830396742,40.36,200.55,200.5,12.63027602]
[1756830396930,40.36,200.55,200.51,12.63027602]
[1756830397949,40.36,200.55,200.52,13.30027602]
[1756830398142,40.34,200.56,200.52,13.30027602]
[1756830398442,40.34,200.56,200.52,12.63027602]
[1756830399047,40.34,200.56,200.52,13.30027602]
[1756830399214,40.34,200.56,200.53,12.63027602]
[1756830399422,40.32,200.56,200.51,4.98727812]
[1756830399744,40.32,200.58,200.55,17.61632418]
[1756830400254,0.71,200.57,200.53,12.63027602]
[1756830400431,40.32,200.58,200.5,5.65753117]
[1756830400621,40.32,200.58,200.53,12.63027602]
[1756830400822,0.71,200.57,200.53,12.63027602]
[1756830401024,52.95027602,200.58,200.52,12.63027602]
[1756830401224,0.67,200.56,200.52,12.63027602]
[1756830401442,13.30027602,200.55,200.47,0.03]
[1756830401753,45.30664304,200.54,200.49,12.63027602]
[1756830401956,0.67,200.53,200.49,12.63027602]
[1756830402144,0.67,200.53,200.47,0.03]
[1756830402447,0.67,200.53,200.49,12.63027602]
[1756830402654,0.73,200.6,200.52,12.63027602]
[1756830402826,12.63027602,200.55,200.47,0.03]
[1756830403033,53.66027602,200.54,200.48,12.63027602]
[1756830403352,53.66027602,200.54,200.47,0.03]
[1756830403353,41.03,200.54,200.49,12.63027602]
[1756830403529,0.67,200.53,200.48,12.63027602]
[1756830403859,0.67,200.53,200.48,4.98799403]
[1756830404038,40.62,200.54,200.52,12.63027602]
[1756830404239,40.62,200.56,200.53,12.63027602]
[1756830404537,40.62,200.56,200.52,0.68]
[1756830404737,0.06,200.6,200.55,12.63027602]
[1756830404926,0.06,200.6,200.59,12.63027602]
[1756830405363,0.06,200.6,200.56,0.68]
[1756830405542,0.06,200.6,200.58,12.63027602]
[1756830406254,0.06,200.6,200.55,4.9862877]
[1756830406441,0.06,200.6,200.58,12.63027602]
[1756830406647,0.73,200.6,200.56,12.63027602]
[1756830406959,0.06,200.6,200.55,12.63027602]
[1756830407250,13.30027602,200.59,200.53,12.63027602]
[1756830407448,0.67,200.59,200.54,12.63027602]
[1756830407959,0.67,200.58,200.54,12.63027602]
[1756830408333,40.6,200.57,200.52,4.98695726]
[1756830408534,12.63027602,200.55,200.47,0.03]
[1756830408828,12.63027602,200.55,200.49,12.63027602]
[1756830409275,12.63027602,200.51,200.47,0.03]
[1756830409432,40.64,200.51,200.47,0.03]
[1756830409758,40.62,200.52,200.49,12.63027602]
[1756830409970,40.64,200.52,200.49,13.31027602]
[1756830410272,0.06,200.56,200.49,13.31027602]
[1756830410273,40.7,200.56,200.51,12.63027602]
[1756830410474,40.7,200.56,200.49,17.45715009]
[1756830410758,12.63027602,200.53,200.48,4.98799203]
[1756830411065,0.67,200.53,200.48,17.61826805]
[1756830411359,0.67,200.53,200.48,12.63027602]
[1756830411957,13.30027602,200.53,200.47,12.66027602]
[1756830412268,0.67,200.53,200.47,0.03]
[1756830412470,13.30027602,200.53,200.47,12.66027602]
[1756830412677,4.98677975,200.54,200.47,0.03]
[1756830412984,12.63027602,200.48,200.47,0.03]
[1756830413268,0.67,200.52,200.47,0.03]
[1756830413474,0.67,200.52,200.47,12.66027602]
[1756830413651,41.39,200.51,200.47,0.03]
[1756830413847,53.35027602,200.51,200.47,0.03]
[1756830414049,0.67,200.5,200.47,0.03]
[1756830415154,40.72,200.51,200.47,0.03]
[1756830415339,0.67,200.5,200.47,0.03]
[1756830416456,0.67,200.49,200.47,0.03]
[1756830417152,40.66,200.48,200.47,0.03]
[1756830418063,40.64,200.48,200.47,12.66027602]
[1756830418371,13.30027602,200.53,200.47,17.64854614]
[1756830418572,40.64,200.52,200.47,17.64854614]
[1756830418777,0.67,200.51,200.47,5.01827012]
[1756830418955,0.67,200.51,200.47,12.66027602]
[1756830419855,0.67,200.51,200.47,0.03]
[1756830420067,13.30027602,200.51,200.47,0.03]
[1756830420245,0.67,200.5,200.47,0.03]
[1756830420568,26.0,200.55,200.47,0.03]
[1756830420752,41.29,200.54,200.47,0.03]
[1756830421069,0.67,200.54,200.47,12.66027602]
[1756830421254,40.62,200.53,200.49,12.63027602]
[1756830421560,40.62,200.52,200.49,13.31027602]
[1756830421750,0.67,200.54,200.49,12.63027602]
[1756830421937,40.62,200.53,200.49,12.63027602]
[1756830422144,40.62,200.53,200.49,13.31027602]
[1756830422364,41.29,200.53,200.49,12.63027602]
[1756830422569,18.34640709,200.56,200.5,12.63027602]
[1756830422771,0.73,200.56,200.52,12.63027602]
[1756830422945,0.06,200.56,200.53,12.63027602]
[1756830423146,40.62,200.55,200.54,12.63027602]
[1756830423373,0.06,200.56,200.54,12.63027602]
[1756830423583,0.06,200.56,200.55,12.63027602]
[1756830423774,0.06,200.56,200.55,13.31027602]
[1756830424254,0.06,200.56,200.55,5.6662877]
[1756830424445,0.06,200.56,200.55,18.29656372]
[1756830424846,0.06,200.59,200.56,13.59559401]
[1756830425057,0.06,200.59,200.58,12.63027602]
[1756830425460,0.06,200.59,200.58,13.31027602]
[1756830426379,0.06,200.59,200.58,18.29581794]
[1756830427670,0.06,200.59,200.58,12.63027602]
[1756830428178,0.06,200.59,200.54,0.68]
[1756830428356,0.06,200.59,200.56,12.63027602]
[1756830428883,0.06,200.59,200.57,12.63027602]
[1756830429070,0.06,200.59,200.54,0.68]
[1756830429258,0.06,200.59,200.48,12.46991278]
[1756830429259,0.67,200.58,200.55,12.63027602]
[1756830429465,0.06,200.59,200.55,12.63027602]
[1756830429782,0.06,200.59,200.53,0.68]
[1756830429783,13.30027602,200.58,200.52,12.63027602]
[1756830429948,13.30027602,200.58,200.53,12.63027602]
[1756830430148,0.67,200.57,200.52,12.63027602]
[1756830430349,12.63027602,200.58,200.52,12.63027602]
[1756830430350,0.67,200.56,200.52,12.63027602]
[1756830430772,0.67,200.56,200.51,4.98720899]
[1756830431048,0.67,200.56,200.53,12.63027602]
[1756830431252,0.71,200.56,200.52,12.63027602]
[1756830431486,0.71,200.55,200.52,12.63027602]
[1756830431986,0.71,200.55,200.51,12.63027602]
[1756830432361,13.40027602,200.59,200.53,12.63027602]
[1756830432561,13.34027602,200.58,200.5,0.71]
[1756830432886,12.63027602,200.55,200.49,12.63027602]
[1756830433061,0.71,200.54,200.49,12.63027602]
[1756830433465,4.98579049,200.57,200.5,8.37002155]
[1756830433665,9.08002155,200.56,200.5,8.37002155]
[1756830433981,9.08002155,200.56,200.47,5.01825078]
[1756830433982,8.37002155,200.54,200.47,0.03]
[1756830434153,8.37002155,200.48,200.47,0.03]
[1756830434360,9.08002155,200.48,200.47,0.03]
[1756830434664,0.71,200.48,200.47,0.03]
[1756830434854,9.08002155,200.48,200.47,0.03]
[1756830435255,0.71,200.48,200.47,0.03]
[1756830435471,9.08002155,200.48,200.47,0.03]
[1756830436074,26.71,200.51,200.47,0.03]
[1756830436300,0.71,200.48,200.47,0.03]
[1756830436586,9.08002155,200.48,200.47,0.03]
[1756830437173,0.71,200.48,200.47,0.03]
[1756830437983,41.33,200.48,200.47,0.03]
[1756830438786,26.0,200.45,200.44,1e-08]
[1756830438989,26.28432314,200.44,200.42,0.03]
[1756830439172,49.03002155,200.43,200.42,0.03]
[1756830439686,50.16650626,200.43,200.42,0.03]
[1756830440075,55.15577932,200.43,200.42,0.03]
[1756830440770,19.72135178,200.43,200.42,0.03]
[1756830440972,68.75137333,200.43,200.42,0.03]
[1756830441178,68.75137333,200.43,200.29,8.37002155]
[1756830441179,8.37002155,200.35,200.29,8.37002155]
[1756830441388,40.7,200.35,200.29,8.37002155]
[1756830441577,49.07002155,200.35,200.29,8.37002155]
[1756830441976,26.0,200.32,200.25,0.71]
[1756830442167,8.37002155,200.32,200.25,9.08002155]
[1756830442373,8.37002155,200.31,200.25,9.08002155]
[1756830442568,49.17002155,200.3,200.22,4.99448294]
[1756830442889,49.17002155,200.3,200.24,8.37002155]
[1756830443065,40.8,200.3,200.25,8.37002155]
[1756830443375,41.51,200.3,200.25,8.37002155]
[1756830443573,4.99176359,200.33,200.26,0.71]
[1756830443574,0.71,200.33,200.26,0.71]
[1756830443777,8.37002155,200.3,200.22,4.99450604]
[1756830443981,8.37002155,200.3,200.22,0.71]
[1756830443982,8.37002155,200.29,200.22,0.71]
[1756830444280,8.37002155,200.29,200.23,8.37002155]
[1756830444594,8.37002155,200.29,200.22,0.71]
[1756830444771,8.37002155,200.29,200.23,8.37002155]
[1756830444968,8.37002155,200.29,200.22,0.71]
[1756830445175,0.71,200.3,200.23,8.37002155]
[1756830445386,40.78,200.32,200.28,8.37002155]
[1756830445563,13.59559401,200.39,200.29,13.36278204]
[1756830445899,41.51,200.38,200.34,8.37002155]
[1756830446074,41.51,200.38,200.32,0.71]
[1756830446390,40.8,200.39,200.35,8.37002155]
[1756830446601,8.37002155,200.36,200.28,0.71]
[1756830446808,8.37002155,200.36,200.3,8.37002155]
[1756830447286,40.98,200.35,200.28,0.71]
[1756830447677,40.98,200.35,200.3,8.37002155]
[1756830447877,0.71,200.37,200.31,8.37002155]
[1756830448076,40.96,200.36,200.32,0.71]
[1756830448266,0.71,200.41,200.32,0.71]
[1756830448470,9.08002155,200.41,200.35,8.37002155]
[1756830448679,40.96,200.4,200.34,0.71]
[1756830448896,40.96,200.4,200.36,8.37002155]
[1756830449080,0.71,200.39,200.3,0.71]
[1756830449280,9.08002155,200.39,200.33,8.37002155]
[1756830449482,45.95007273,200.4,200.35,8.37002155]
[1756830449672,8.37002155,200.38,200.28,0.71]
[1756830449996,8.37002155,200.38,200.25,0.71]
[1756830449997,8.37002155,200.32,200.25,0.71]
[1756830450173,8.37002155,200.32,200.27,8.37002155]
[1756830450374,9.08002155,200.31,200.23,5.02425275]
[1756830450597,9.08002155,200.31,200.25,8.37002155]
[1756830450971,0.71,200.31,200.26,8.37002155]
[1756830451491,14.07274697,200.3,200.23,0.03]
[1756830451695,8.37002155,200.29,200.24,8.37002155]
[1756830451876,40.98,200.33,200.28,8.37002155]
[1756830451877,40.96,200.32,200.28,8.37002155]
[1756830452077,40.96,200.32,200.29,8.37002155]
[1756830452486,40.96,200.32,200.25,0.71]
[1756830452704,0.71,200.36,200.29,8.37002155]
[1756830452915,26.71,200.39,200.33,8.37002155]
[1756830453077,41.02,200.4,200.37,8.37002155]
[1756830453399,9.08002155,200.39,200.33,8.37002155]
[1756830453571,9.08002155,200.39,200.3,4.99251123]
[1756830453775,8.37002155,200.31,200.26,8.37002155]
[1756830453988,41.79,200.3,200.25,8.37002155]
[1756830454503,41.79,200.3,200.24,5.70400719]
[1756830454504,41.08,200.3,200.27,8.37002155]
[1756830455097,0.71,200.33,200.27,8.37002155]
[1756830455273,41.06,200.32,200.27,8.37002155]
[1756830455876,41.06,200.32,200.27,14.07320037]
[1756830456084,41.77,200.32,200.27,13.36320037]
[1756830456500,26.0,200.35,200.28,9.08002155]
[1756830456672,41.04,200.34,200.29,8.37002155]
[1756830456885,41.04,200.34,200.29,9.08002155]
[1756830457082,133.4,200.38,200.31,8.37002155]
[1756830457280,41.02,200.37,200.3,0.71]
[1756830457506,41.02,200.39,200.35,8.37002155]
[1756830457809,41.02,200.39,200.37,8.37002155]
[1756830458396,41.02,200.39,200.35,5.70111209]
[1756830458704,41.02,200.39,200.37,8.37002155]
[1756830458879,41.02,200.39,200.38,8.37002155]
[1756830459079,41.02,200.43,200.38,9.08002155]
[1756830459404,41.02,200.43,200.35,17.4692753]
[1756830459405,41.02,200.42,200.4,8.37002155]
[1756830459592,41.02,200.44,200.4,8.37002155]
[1756830459905,8.37002155,200.42,200.33,0.71]
[1756830460204,8.37002155,200.4,200.35,8.37002155]
[1756830460511,41.0,200.39,200.35,8.37002155]
[1756830461094,0.66,200.43,200.37,8.37002155]
[1756830461296,49.41002155,200.42,200.36,8.37002155]
[1756830461490,49.41002155,200.42,200.34,0.7]
[1756830461688,8.37002155,200.39,200.33,8.37002155]
[1756830461899,5.64977133,200.41,200.31,5.69212434]
[1756830462103,8.37002155,200.39,200.34,8.37002155]
[1756830462303,9.03002155,200.39,200.34,8.37002155]
[1756830462790,0.66,200.39,200.34,8.37002155]
[1756830463191,9.03002155,200.38,200.32,8.37002155]
[1756830463403,41.02,200.37,200.32,8.37002155]
[1756830463694,41.68,200.37,200.33,8.37002155]
[1756830463906,41.68,200.37,200.3,4.99251123]
[1756830464111,41.68,200.37,200.33,8.37002155]
[1756830464909,41.68,200.37,200.3,4.99251123]
[1756830465103,41.68,200.37,200.33,8.37002155]
[1756830465303,41.68,200.37,200.34,8.37002155]
[1756830465304,41.02,200.37,200.34,8.37002155]
[1756830465695,40.98,200.37,200.28,4.99300978]
[1756830465909,40.98,200.37,200.34,13.36153597]
[1756830466111,40.98,200.37,200.35,8.37002155]
[1756830466512,9.03002155,200.41,200.35,9.07002155]
[1756830466821,9.03002155,200.41,200.36,8.37002155]
[1756830466822,40.98,200.4,200.36,8.37002155]
[1756830467007,41.64,200.4,200.36,8.37002155]
[1756830467396,0.66,200.44,200.38,8.37002155]
[1756830467619,40.96,200.43,200.41,8.37002155]
[1756830467806,12.52527038,200.56,200.42,13.35944158]
[1756830467807,40.96,200.44,200.42,13.35944158]
[1756830468004,40.96,200.44,200.42,4.98942003]
[1756830468203,40.96,200.44,200.43,8.37002155]
[1756830469021,49.99002155,200.44,200.37,8.37002155]
[1756830469316,8.37002155,200.42,200.36,8.37002155]
[1756830469618,0.66,200.41,200.36,8.37002155]
[1756830469926,0.66,200.41,200.37,4.99076708]
[1756830470423,8.37002155,200.39,200.31,0.7]
[1756830470611,40.98,200.39,200.34,8.37002155]
[1756830470802,40.98,200.39,200.35,8.37002155]
[1756830470997,40.98,200.39,200.27,13.59559401]
[1756830470998,8.37002155,200.36,200.27,0.7]
[1756830471213,0.66,200.35,200.29,8.37002155]
[1756830471532,41.02,200.34,200.29,8.37002155]
[1756830471825,0.66,200.33,200.29,8.37002155]
[1756830472129,0.66,200.33,200.27,4.99322999]
[1756830472300,0.66,200.33,200.28,8.37002155]
[1756830472500,41.02,200.34,200.28,8.37002155]
[1756830472708,41.02,200.34,200.29,8.37002155]
[1756830473023,41.02,200.34,200.28,8.37002155]
[1756830473332,40.98,200.33,200.29,8.37002155]
[1756830473616,41.64,200.33,200.28,8.37002155]
[1756830474003,40.98,200.33,200.28,14.06292478]
[1756830474200,40.98,200.33,200.28,4.99290323]
[1756830474405,40.98,200.33,200.29,9.07002155]
[1756830474609,40.98,200.33,200.28,13.36292478]
[1756830474804,0.66,200.32,200.28,13.36292478]
[1756830475019,40.98,200.33,200.28,13.36292478]
[1756830475301,41.64,200.33,200.28,13.36292478]
[1756830476533,40.98,200.33,200.28,14.06292478]
[1756830476833,40.98,200.33,200.3,8.37002155]
[1756830477126,40.98,200.33,200.29,0.7]
[1756830477127,40.98,200.33,200.29,9.07002155]
[1756830477328,40.98,200.33,200.29,8.37002155]
[1756830477627,40.98,200.33,200.28,13.36292478]
[1756830477931,9.03002155,200.32,200.26,9.07002155]
[1756830478103,0.66,200.32,200.26,4.99350124]
[1756830478309,0.66,200.32,200.27,8.37002155]
[1756830478709,49.35002155,200.33,200.28,4.99300978]
[1756830478909,50.01002155,200.33,200.28,4.99300978]
[1756830479633,26.0,200.38,200.29,8.37002155]
[1756830479807,8.37002155,200.35,200.26,4.99350843]
[1756830480007,0.66,200.35,200.3,8.37002155]
[1756830480202,9.03002155,200.35,200.3,8.37002155]
[1756830480703,0.66,200.4,200.35,4.99126528]
[1756830480928,40.82,200.39,200.36,8.37002155]
[1756830481117,40.82,200.39,200.35,8.37002155]
[1756830481416,40.82,200.39,200.36,8.37002155]
[1756830481904,0.06,200.45,200.38,8.37002155]
[1756830482220,40.9,200.45,200.43,8.37002155]
[1756830482409,40.9,200.45,200.39,0.7]
[1756830482410,40.9,200.45,200.42,8.37002155]
[1756830482735,40.9,200.45,200.41,13.35974976]
[1756830482902,0.66,200.44,200.37,4.99076708]
[1756830483099,40.9,200.45,200.4,8.37002155]
[1756830483304,40.9,200.45,200.35,13.36128683]
[1756830483305,8.37002155,200.41,200.35,13.36128683]
[1756830483607,41.48,200.4,200.35,13.36128683]
[1756830483929,9.03002155,200.39,200.33,4.99176359]
[1756830484110,9.03002155,200.39,200.33,13.36178514]
[1756830484313,8.37002155,200.38,200.33,4.99176359]
[1756830484507,8.37002155,200.35,200.29,8.37002155]
[1756830484811,40.84,200.34,200.29,13.36270939]
[1756830485016,40.86,200.39,200.33,8.37002155]
[1756830485212,0.66,200.4,200.34,8.37002155]
[1756830485213,40.86,200.38,200.34,8.37002155]
[1756830485400,9.03002155,200.37,200.29,4.99268784]
[1756830485605,0.66,200.37,200.3,8.37002155]
[1756830485816,8.37002155,200.36,200.3,8.37002155]
[1756830486017,0.66,200.37,200.31,8.37002155]
[1756830486018,9.03002155,200.37,200.31,8.37002155]
[1756830486515,8.37002155,200.36,200.3,8.37002155]
[1756830487119,8.37002155,200.33,200.27,8.37002155]
[1756830487323,40.88,200.32,200.31,0.03]
[1756830487538,41.54,200.32,200.31,0.03]
[1756830488336,0.66,200.39,200.31,0.73]
[1756830488532,40.88,200.38,200.31,0.73]
[1756830489315,40.88,200.38,200.33,13.36155176]
[1756830489637,41.54,200.38,200.33,13.36155176]
[1756830490010,40.88,200.38,200.33,4.99153021]
[1756830490211,40.88,200.38,200.31,0.73]
[1756830490212,8.37002155,200.36,200.31,0.03]
[1756830490619,8.37002155,200.33,200.31,0.03]
[1756830490944,41.56,200.32,200.31,0.03]
[1756830491160,49.93002155,200.32,200.31,0.03]
[1756830491837,54.92203432,200.32,200.31,0.03]
[1756830493013,55.34851903,200.32,200.31,0.03]
[1756830493638,59.64255022,200.32,200.31,0.03]
[1756830494049,59.60255022,200.32,200.31,0.03]
[1756830494234,59.17606551,200.32,200.31,0.03]
[1756830494434,59.15606551,200.32,200.31,0.03]
[1756830495640,40.82,200.32,200.31,0.03]
[1756830495834,54.20405274,200.32,200.31,0.03]
[1756830497447,59.19606551,200.32,200.31,0.03]
[1756830498059,41.54,200.32,200.31,0.03]
[1756830498361,54.22405274,200.32,200.31,0.03]
[1756830498552,41.56,200.32,200.31,0.03]
[1756830498756,59.21606551,200.32,200.31,0.03]
[1756830499357,73.23814423,200.32,200.31,0.03]
[1756830500264,26.42648471,200.29,200.28,0.03]
[1756830500462,93.46613146,200.29,200.28,1e-08]
[1756830500757,94.18613146,200.29,200.28,1e-08]
[1756830501149,39.59559401,200.25,200.09,0.71]
[1756830501368,0.28432314,200.19,200.09,0.71]
[1756830501550,26.0,200.2,200.09,0.71]
[1756830501551,12.66405274,200.15,200.09,0.71]
[1756830501752,40.8,200.14,200.09,13.37405274]
[1756830501947,40.8,200.14,200.1,0.71]
[1756830502552,40.8,200.14,200.11,0.71]
[1756830502967,40.78,200.14,200.11,0.71]
[1756830503374,40.78,200.14,200.02,18.6176105]
[1756830503375,12.66405274,200.13,200.07,0.71]
[1756830503576,40.78,200.12,200.07,13.37405274]
[1756830503876,40.78,200.12,200.08,0.71]
[1756830504242,40.78,200.12,200.05,5.70875031]
[1756830504471,40.78,200.12,200.07,12.66405274]
[1756830504652,40.78,200.12,200.08,18.37205353]
[1756830505163,40.78,200.12,200.09,0.71]
[1756830505568,40.78,200.12,200.07,12.66405274]
[1756830505870,40.78,200.12,200.07,13.37405274]
[1756830506070,40.78,200.12,200.07,0.71]
[1756830506243,40.78,200.12,200.04,4.99900019]
[1756830506244,40.78,200.12,200.08,0.71]
[1756830506753,40.78,200.12,200.09,0.03]
[1756830507450,40.78,200.12,200.09,0.74]
[1756830507847,40.78,200.12,200.09,0.03]
[1756830509661,40.66,200.12,200.1,13.37405274]
[1756830510853,40.66,200.12,200.1,18.37140169]
[1756830511168,40.66,200.12,200.1,4.99734895]
[1756830511368,40.66,200.12,200.09,12.69405274]
[1756830511550,40.66,200.12,200.09,13.40405274]
[1756830511947,40.66,200.12,200.09,0.74]
[1756830512254,40.66,200.12,200.1,12.66405274]
[1756830512576,40.66,200.12,200.11,4.99725151]
[1756830513150,40.66,200.12,200.1,17.66151038]
[1756830513461,40.66,200.12,200.1,18.37151038]
[1756830513658,40.66,200.12,200.1,17.66151038]
[1756830514060,40.66,200.12,200.09,0.03]
[1756830514573,40.66,200.12,200.09,17.69179722]
[1756830515089,40.66,200.12,200.1,12.66405274]
[1756830515568,40.56,200.13,200.11,0.71]
[1756830515872,13.38405274,200.17,200.11,0.71]
[1756830515873,40.54,200.15,200.12,12.66405274]
[1756830516057,40.54,200.15,200.12,13.37405274]
[1756830516652,40.54,200.15,200.13,4.99675211]
[1756830516854,0.72,200.21,200.14,0.71]
[1756830517054,40.54,200.2,200.14,12.66405274]
[1756830517255,12.66405274,200.19,200.14,12.66405274]
[1756830517469,0.72,200.18,200.14,12.66405274]
[1756830517674,40.54,200.17,200.15,13.37405274]
[1756830517976,40.52,200.18,200.14,12.66405274]
[1756830518180,40.52,200.18,200.13,4.99675211]
[1756830518181,40.52,200.18,200.15,12.66405274]
[1756830518369,40.52,200.18,200.16,12.66405274]
[1756830519158,40.52,200.18,200.15,13.37405274]
[1756830519470,40.52,200.18,200.16,12.66405274]
[1756830519875,40.52,200.18,200.17,13.37405274]
[1756830520075,40.52,200.18,200.17,18.36980634]
[1756830520383,0.72,200.18,200.11,5.70725151]
[1756830520763,41.22,200.17,200.11,4.99725151]
[1756830520961,41.22,200.17,200.12,12.66405274]
[1756830521180,53.16405274,200.17,200.11,17.66130425]
[1756830521374,40.5,200.17,200.12,12.66405274]
[1756830521659,41.21,200.17,200.12,12.66405274]
[1756830521859,41.21,200.17,200.12,17.66094789]
[1756830522283,13.37405274,200.16,200.09,0.03]
[1756830522488,12.66405274,200.15,200.09,12.69405274]
[1756830522782,0.71,200.14,200.09,12.69405274]
[1756830522959,40.5,200.13,200.09,12.69405274]
[1756830523161,41.21,200.13,200.09,12.69405274]
[1756830523361,41.21,200.13,200.09,17.69173832]
[1756830523586,40.5,200.13,200.1,13.36405274]
[1756830523897,40.5,200.13,200.1,12.66405274]
[1756830524269,13.37405274,200.16,200.1,12.66405274]
[1756830524472,40.46,200.15,200.11,12.66405274]
[1756830524676,0.71,200.14,200.09,12.69405274]
[1756830524885,0.71,200.13,200.09,5.0277088]
[1756830525266,26.71,200.12,200.09,0.03]
[1756830525472,12.66405274,200.1,200.09,0.03]
[1756830525788,40.46,200.11,200.1,0.03]
[1756830525970,53.83405274,200.11,200.1,0.03]
[1756830526488,72.85338297,200.11,200.1,0.03]
[1756830526791,98.85338297,200.11,200.1,0.03]
[1756830527388,5.42473532,200.07,200.06,0.03]
[1756830527562,71.3328408,200.07,200.06,0.03]
[1756830527765,59.37878806,200.07,200.06,0.03]
[1756830528066,26.0,200.03,199.86,12.50853526]
[1756830528275,26.0,199.99,199.84,4.95690777]
[1756830528475,12.66405274,200.06,199.84,4.95690777]
[1756830528476,12.66405274,199.92,199.84,4.95690777]
[1756830528773,12.66405274,199.85,199.84,4.95690777]
[1756830528967,12.66405274,199.85,199.79,12.66405274]
[1756830528968,0.71,199.85,199.79,12.66405274]
[1756830529169,0.71,199.85,199.77,0.7]
[1756830529501,12.66405274,199.82,199.76,12.66405274]
[1756830529673,41.58,199.83,199.74,0.7]
[1756830529868,54.24405274,199.83,199.76,12.66405274]
[1756830530066,13.59559401,199.92,199.81,12.66405274]
[1756830530269,0.71,199.88,199.8,0.7]
[1756830530592,0.71,199.88,199.82,12.66405274]
[1756830530776,0.14216157,199.93,199.84,12.66405274]
[1756830530976,41.56,199.93,199.88,12.66405274]
[1756830531176,41.56,199.93,199.86,0.7]
[1756830531384,41.56,199.93,199.82,5.00450405]
[1756830531385,12.66405274,199.89,199.82,5.00450405]
[1756830531586,12.66405274,199.87,199.82,5.00450405]
[1756830531770,42.31,199.89,199.83,12.66405274]
[1756830532172,54.44405274,199.9,199.84,12.66405274]
[1756830532391,54.44405274,199.9,199.82,17.51576418]
[1756830532797,13.37405274,199.94,199.87,12.66405274]
[1756830533101,41.76,199.93,199.89,12.66405274]
[1756830533287,41.76,199.94,199.9,12.66405274]
[1756830533601,41.76,199.94,199.91,5.00225101]
[1756830534589,41.76,199.94,199.91,17.66630375]
[1756830536193,41.76,199.94,199.91,5.00225101]
[1756830536401,0.71,200.0,199.93,12.66405274]
[1756830536589,54.34405274,199.99,199.92,13.36405274]
[1756830537095,12.66405274,199.95,199.91,5.00225101]
[1756830537288,55.05405274,199.95,199.91,5.00225101]
[1756830537486,41.68,199.95,199.91,5.00225101]
[1756830537880,41.68,199.95,199.9,12.66405274]
[1756830538199,13.37405274,199.94,199.88,12.66405274]